Workbook

Sheet Laporan Kewangan
B2: LAPORAN KEWANGAN TAHUNAN | K2: 2016 | N2: Pilih tahun laporan di sel L2
B3: NAMA SYARIKAT ANDA | N3: Untuk mengedit data, pilih helaian Input Data Kewangan
B5: METRIK UTAMA | D5: Klik untuk mengubah laporan Metrik Utama
B7: =Pengiraan!B8 -> HASIL | D7: =Pengiraan!B9 -> UNTUNG BERSIH | F7: =Pengiraan!B10 -> FAEDAH | H7: =Pengiraan!B11 -> SUSUT NILAI | J7: =Pengiraan!B12 -> KEUNTUNGAN OPERASI
B8: =IFERROR(Pengiraan!G8,"") -> RM180,584 | D8: =IFERROR(Pengiraan!G9,"") -> RM67,475 | F8: =IFERROR(Pengiraan!G10,"") -> RM3,789 | H8: =IFERROR(Pengiraan!G11,"") -> RM5,547 | J8: =IFERROR(Pengiraan!G12,"") -> RM73,426
B9: =Pengiraan!H8 -> 0% | D9: =Pengiraan!H9 -> 2% | F9: =Pengiraan!H10 -> 14% | H9: =Pengiraan!H11 -> 9% | J9: =Pengiraan!H12 -> -5%
B13: SEMUA METRIK | D13: Dilarang mengubah suai maklumat di bawah. Klik untuk memasukkan Data kewangan
B15: METRIK | D15: ="LAPORAN TAHUN ("&TahunYangTerpilih&")" -> LAPORAN TAHUN (2016) | F15: ="TAHUN SEBELUMNYA ("&TahunYangTerpilih-1&")" -> TAHUN SEBELUMNYA (2015) | H15: % PERUBAHAN | I15: =CONCATENATE(" ARAH ALIRAN ",Tahun," TAHUN") -> ARAH ALIRAN 5 TAHUN
B16: =Pengiraan!B15 -> HASIL | D16: =IF($B16="","",Pengiraan!G15) -> RM180,583.88 | F16: =IF($B16="","",Pengiraan!F15) -> RM180,026.63 | H16: =IFERROR(D16/F16-1,"") -> 0%
B17: =Pengiraan!B16 -> PERBELANJAAN OPERASI | D17: =IF($B17="","",Pengiraan!G16) -> RM94,419.45 | F17: =IF($B17="","",Pengiraan!F16) -> RM80,883.33 | H17: 17%
B18: =Pengiraan!B17 -> KEUNTUNGAN OPERASI | D18: =IF($B18="","",Pengiraan!G17) -> RM73,425.99 | F18: =IF($B18="","",Pengiraan!F17) -> RM77,317.83 | H18: -5%
B19: =Pengiraan!B18 -> SUSUT NILAI | D19: =IF($B19="","",Pengiraan!G18) -> RM5,546.88 | F19: =IF($B19="","",Pengiraan!F18) -> RM5,068.42 | H19: 9%
B20: =Pengiraan!B19 -> FAEDAH | D20: =IF($B20="","",Pengiraan!G19) -> RM3,789.47 | F20: =IF($B20="","",Pengiraan!F19) -> RM3,338.30 | H20: 14%
B21: =Pengiraan!B20 -> UNTUNG BERSIH | D21: =IF($B21="","",Pengiraan!G20) -> RM67,474.85 | F21: =IF($B21="","",Pengiraan!F20) -> RM66,272.10 | H21: 2%
B22: =Pengiraan!B21 -> CUKAI | D22: =IF($B22="","",Pengiraan!G21) -> RM31,408.25 | F22: =IF($B22="","",Pengiraan!F21) -> RM29,424.53 | H22: 7%
B23: =Pengiraan!B22 -> KEUNTUNGAN SELEPAS CUKAI | D23: =IF($B23="","",Pengiraan!G22) -> RM50,247.68 | F23: =IF($B23="","",Pengiraan!F22) -> RM42,438.20 | H23: 18%
B24: =Pengiraan!B23 -> METRIK 1 | D24: =IF($B24="","",Pengiraan!G23) -> RM19.96 | F24: =IF($B24="","",Pengiraan!F23) -> RM16.78 | H24: 19%
B25: =Pengiraan!B24 -> METRIK 2 | D25: =IF($B25="","",Pengiraan!G24) -> RM26.01 | F25: =IF($B25="","",Pengiraan!F24) -> RM21.84 | H25: 19%
B26: =Pengiraan!B25 -> METRIK 3 | D26: =IF($B26="","",Pengiraan!G25) -> RM31.08 | F26: =IF($B26="","",Pengiraan!F25) -> RM26.39 | H26: 18%
B27: =Pengiraan!B26 -> METRIK 4 | D27: =IF($B27="","",Pengiraan!G26) -> RM14.92 | F27: =IF($B27="","",Pengiraan!F26) -> RM14.59 | H27: 2%
B28: =Pengiraan!B27 -> METRIK 5 | D28: =IF($B28="","",Pengiraan!G27) -> RM1.03 | F28: =IF($B28="","",Pengiraan!F27) -> RM1.00 | H28: 3%
B29: =Pengiraan!B28 -> METRIK 6 | D29: =IF($B29="","",Pengiraan!G28) -> RM0.34 | F29: =IF($B29="","",Pengiraan!F28) -> RM0.30 | H29: 13%
B30: =Pengiraan!B29 ->  | D30: =IF($B30="","",Pengiraan!G29) ->  | F30: =IF($B30="","",Pengiraan!F29) -> 
B31: =Pengiraan!B30 ->  | D31: =IF($B31="","",Pengiraan!G30) ->  | F31: =IF($B31="","",Pengiraan!F30) -> 
B32: =Pengiraan!B31 ->  | D32: =IF($B32="","",Pengiraan!G31) ->  | F32: =IF($B32="","",Pengiraan!F31) -> 
B33: =Pengiraan!B32 ->  | D33: =IF($B33="","",Pengiraan!G32) ->  | F33: =IF($B33="","",Pengiraan!F32) -> 
B34: =Pengiraan!B33 ->  | D34: =IF($B34="","",Pengiraan!G33) ->  | F34: =IF($B34="","",Pengiraan!F33) -> 
B35: =Pengiraan!B34 ->  | D35: =IF($B35="","",Pengiraan!G34) ->  | F35: =IF($B35="","",Pengiraan!F34) -> 
B36: =Pengiraan!B35 ->  | D36: =IF($B36="","",Pengiraan!G35) ->  | F36: =IF($B36="","",Pengiraan!F35) -> 
B37: =Pengiraan!B36 ->  | D37: =IF($B37="","",Pengiraan!G36) ->  | F37: =IF($B37="","",Pengiraan!F36) -> 
B38: =Pengiraan!B37 ->  | D38: =IF($B38="","",Pengiraan!G37) ->  | F38: =IF($B38="","",Pengiraan!F37) -> 
B39: =Pengiraan!B38 ->  | D39: =IF($B39="","",Pengiraan!G38) ->  | F39: =IF($B39="","",Pengiraan!F38) -> 
B40: =Pengiraan!B39 ->  | D40: =IF($B40="","",Pengiraan!G39) ->  | F40: =IF($B40="","",Pengiraan!F39) -> 

Sheet Input Data Kewangan
B2: INPUT DATA KEWANGAN ANDA
B3: ANDA BOLEH MENENTUKAN SEHINGGA 25 METRIK UTAMA SELAMA 7 TAHUN
B4: Klik untuk melihat Laporan Kewangan
B5: NAMA METRIK | C5: 2010 | D5: 2011 | E5: 2012 | F5: 2013 | G5: 2014 | H5: 2015 | I5: 2016
B6: HASIL | C6: RM125,000.00 | D6: RM134,137.45 | E6: RM142,728.38 | F6: RM150,687.46 | G6: RM165,044.56 | H6: RM180,026.63 | I6: RM180,583.88
B7: PERBELANJAAN OPERASI | C7: RM65,000.00 | D7: RM70,962.31 | E7: RM75,924.86 | F7: RM78,901.27 | G7: RM81,674.37 | H7: RM80,883.33 | I7: RM94,419.45
B8: KEUNTUNGAN OPERASI | C8: RM60,000.00 | D8: RM64,207.30 | E8: RM68,857.69 | F8: RM75,643.25 | G8: RM76,755.26 | H8: RM77,317.83 | I8: RM73,425.99
B9: SUSUT NILAI | C9: RM4,500.00 | D9: RM4,517.77 | E9: RM4,656.92 | F9: RM4,974.21 | G9: RM5,024.11 | H9: RM5,068.42 | I9: RM5,546.88
B10: FAEDAH | C10: RM2,500.00 | D10: RM2,745.82 | E10: RM2,893.11 | F10: RM3,136.12 | G10: RM3,148.53 | H10: RM3,338.30 | I10: RM3,789.47
B11: UNTUNG BERSIH | C11: RM54,000.00 | D11: RM54,761.08 | E11: RM55,860.81 | F11: RM59,747.95 | G11: RM61,483.59 | H11: RM66,272.10 | I11: RM67,474.85
B12: CUKAI | C12: RM22,000.00 | D12: RM23,920.54 | E12: RM25,576.74 | F12: RM27,498.86 | G12: RM28,335.67 | H12: RM29,424.53 | I12: RM31,408.25
B13: KEUNTUNGAN SELEPAS CUKAI | C13: RM32,000.00 | D13: RM34,943.49 | E13: RM38,418.53 | F13: RM39,895.05 | G13: RM40,607.73 | H13: RM42,438.20 | I13: RM50,247.68
B14: METRIK 1 | C14: RM12.80 | D14: RM12.81 | E14: RM13.78 | F14: RM14.29 | G14: RM15.57 | H14: RM16.78 | I14: RM19.96
B15: METRIK 2 | C15: RM18.20 | D15: RM18.59 | E15: RM19.22 | F15: RM20.17 | G15: RM20.48 | H15: RM21.84 | I15: RM26.01
B16: METRIK 3 | C16: RM19.10 | D16: RM20.55 | E16: RM21.87 | F16: RM23.19 | G16: RM24.67 | H16: RM26.39 | I16: RM31.08
B17: METRIK 4 | C17: RM12.10 | D17: RM12.21 | E17: RM12.59 | F17: RM13.70 | G17: RM13.76 | H17: RM14.59 | I17: RM14.92
B18: METRIK 5 | C18: RM0.75 | D18: RM0.79 | E18: RM0.85 | F18: RM0.89 | G18: RM0.91 | H18: RM1.00 | I18: RM1.03
B19: METRIK 6 | C19: RM0.23 | D19: RM0.25 | E19: RM0.27 | F19: RM0.28 | G19: RM0.29 | H19: RM0.30 | I19: RM0.34

Sheet Seting Metrik Utama
B2: TENTUKAN METRIK UTAMA DI SINI
B3: PILIH SEHINGGA 5 METRIK UTAMA UNTUK DITAYANGKAN DI BAHAGIAN ATAS LAPORAN
B4: Klik untuk melihat Laporan Kewangan
B5: 1 | C5: HASIL | E5: =IF(ISBLANK(C5),"← Sila pilih nilai daripada juntai bawah",IF(COUNTIF($C$5:C5,C5)>1,"Anda telah memilih "&C5&" lebih daripada sekali.","")) -> 
B6: 2 | C6: UNTUNG BERSIH | E6: =IF(ISBLANK(C6),"← Sila pilih nilai daripada juntai bawah",IF(COUNTIF($C$5:C6,C6)>1,"Anda telah memilih "&C6&" lebih daripada sekali.","")) -> 
B7: 3 | C7: FAEDAH | E7: =IF(ISBLANK(C7),"← Sila pilih nilai daripada juntai bawah",IF(COUNTIF($C$5:C7,C7)>1,"Anda telah memilih "&C7&" lebih daripada sekali.","")) -> 
B8: 4 | C8: SUSUT NILAI | E8: =IF(ISBLANK(C8),"← Sila pilih nilai daripada juntai bawah",IF(COUNTIF($C$5:C8,C8)>1,"Anda telah memilih "&C8&" lebih daripada sekali.","")) -> 
B9: 5 | C9: KEUNTUNGAN OPERASI | E9: =IF(ISBLANK(C9),"← Sila pilih nilai daripada juntai bawah",IF(COUNTIF($C$5:C9,C9)>1,"Anda telah memilih "&C9&" lebih daripada sekali.","")) -> 

Sheet Pengiraan (hidden)
A1: Lembaran kerja ini digunakan untuk pengiraan Laporan Kewangan dan harus kekal tersembunyi.
D2: Kedudukan
B3: Tahun ini | C3: =TahunYangTerpilih -> 2016 | D3: =MATCH(C3,lstTahun,0)+1 -> 8
B4: Tahun Sebelumnya | C4: =C3-1 -> 2015 | D4: =MATCH(C4,lstTahun,0)+1 -> 7
B6: Kedudukan | C6: =MATCH(C7,lstTahun,0)+1 -> 4 | D6: =MATCH(D7,lstTahun,0)+1 -> 5 | E6: =MATCH(E7,lstTahun,0)+1 -> 6 | F6: =MATCH(F7,lstTahun,0)+1 -> 7 | G6: =MATCH(G7,lstTahun,0)+1 -> 8 | I6: =COUNT(C6:G6) -> 5
B7: Metrik Utama | C7: =D7-1 -> 2012 | D7: =E7-1 -> 2013 | E7: =F7-1 -> 2014 | F7: =G7-1 -> 2015 | G7: =C3 -> 2016
A8: =MATCH(B8,'Input Data Kewangan'!$B$6:$B$30,0) -> 1 | B8: =IF('Seting Metrik Utama'!C5="","",'Seting Metrik Utama'!C5) -> HASIL | C8: =IFERROR(INDEX('Input Data Kewangan'!$B$6:$I$30,$A8,C$6),NA()) -> 142728.38 | D8: =IFERROR(INDEX('Input Data Kewangan'!$B$6:$I$30,$A8,D$6),NA()) -> 150687.46 | E8: =IFERROR(INDEX('Input Data Kewangan'!$B$6:$I$30,$A8,E$6),NA()) -> 165044.56 | F8: =IFERROR(INDEX('Input Data Kewangan'!$B$6:$I$30,$A8,F$6),NA()) -> 180026.63 | G8: =IFERROR(INDEX('Input Data Kewangan'!$B$6:$I$30,$A8,G$6),NA()) -> 180583.88 | H8: =IFERROR(G8/F8-1,"") -> 0%
A9: =MATCH(B9,'Input Data Kewangan'!$B$6:$B$30,0) -> 6 | B9: =IF('Seting Metrik Utama'!C6="","",'Seting Metrik Utama'!C6) -> UNTUNG BERSIH | C9: =IFERROR(INDEX('Input Data Kewangan'!$B$6:$I$30,$A9,C$6),NA()) -> 55860.81 | D9: =IFERROR(INDEX('Input Data Kewangan'!$B$6:$I$30,$A9,D$6),NA()) -> 59747.95 | E9: =IFERROR(INDEX('Input Data Kewangan'!$B$6:$I$30,$A9,E$6),NA()) -> 61483.59 | F9: =IFERROR(INDEX('Input Data Kewangan'!$B$6:$I$30,$A9,F$6),NA()) -> 66272.1 | G9: =IFERROR(INDEX('Input Data Kewangan'!$B$6:$I$30,$A9,G$6),NA()) -> 67474.85 | H9: =IFERROR(G9/F9-1,"") -> 2%
A10: =MATCH(B10,'Input Data Kewangan'!$B$6:$B$30,0) -> 5 | B10: =IF('Seting Metrik Utama'!C7="","",'Seting Metrik Utama'!C7) -> FAEDAH | C10: =IFERROR(INDEX('Input Data Kewangan'!$B$6:$I$30,$A10,C$6),NA()) -> 2893.11 | D10: =IFERROR(INDEX('Input Data Kewangan'!$B$6:$I$30,$A10,D$6),NA()) -> 3136.12 | E10: =IFERROR(INDEX('Input Data Kewangan'!$B$6:$I$30,$A10,E$6),NA()) -> 3148.53 | F10: =IFERROR(INDEX('Input Data Kewangan'!$B$6:$I$30,$A10,F$6),NA()) -> 3338.3 | G10: =IFERROR(INDEX('Input Data Kewangan'!$B$6:$I$30,$A10,G$6),NA()) -> 3789.47 | H10: 14%
A11: =MATCH(B11,'Input Data Kewangan'!$B$6:$B$30,0) -> 4 | B11: =IF('Seting Metrik Utama'!C8="","",'Seting Metrik Utama'!C8) -> SUSUT NILAI | C11: =IFERROR(INDEX('Input Data Kewangan'!$B$6:$I$30,$A11,C$6),NA()) -> 4656.92 | D11: =IFERROR(INDEX('Input Data Kewangan'!$B$6:$I$30,$A11,D$6),NA()) -> 4974.21 | E11: =IFERROR(INDEX('Input Data Kewangan'!$B$6:$I$30,$A11,E$6),NA()) -> 5024.11 | F11: =IFERROR(INDEX('Input Data Kewangan'!$B$6:$I$30,$A11,F$6),NA()) -> 5068.42 | G11: =IFERROR(INDEX('Input Data Kewangan'!$B$6:$I$30,$A11,G$6),NA()) -> 5546.88 | H11: 9%
A12: =MATCH(B12,'Input Data Kewangan'!$B$6:$B$30,0) -> 3 | B12: =IF('Seting Metrik Utama'!C9="","",'Seting Metrik Utama'!C9) -> KEUNTUNGAN OPERASI | C12: =IFERROR(INDEX('Input Data Kewangan'!$B$6:$I$30,$A12,C$6),NA()) -> 68857.69 | D12: =IFERROR(INDEX('Input Data Kewangan'!$B$6:$I$30,$A12,D$6),NA()) -> 75643.25 | E12: =IFERROR(INDEX('Input Data Kewangan'!$B$6:$I$30,$A12,E$6),NA()) -> 76755.26 | F12: =IFERROR(INDEX('Input Data Kewangan'!$B$6:$I$30,$A12,F$6),NA()) -> 77317.83 | G12: =IFERROR(INDEX('Input Data Kewangan'!$B$6:$I$30,$A12,G$6),NA()) -> 73425.99 | H12: -5%
B14: Semua Metrik (berfungsi sehingga 25 metrik)
A15: =ROWS($B$15:B15) -> 1 | B15: =IF('Input Data Kewangan'!B6=0,"",'Input Data Kewangan'!B6) -> HASIL | C15: =IF(B15="",NA(),IFERROR(INDEX('Input Data Kewangan'!$B$6:$I$30,$A15,C$6),NA())) -> 142728.38 | D15: =IF(B15="",NA(),IFERROR(INDEX('Input Data Kewangan'!$B$6:$I$30,$A15,D$6),NA())) -> 150687.46 | E15: =IF(B15="",NA(),IFERROR(INDEX('Input Data Kewangan'!$B$6:$I$30,$A15,E$6),NA())) -> 165044.56 | F15: =IF(B15="",NA(),IFERROR(INDEX('Input Data Kewangan'!$B$6:$I$30,$A15,F$6),NA())) -> 180026.63 | G15: =IF(B15="",NA(),IFERROR(INDEX('Input Data Kewangan'!$B$6:$I$30,$A15,G$6),NA())) -> 180583.88
A16: =ROWS($B$15:B16) -> 2 | B16: =IF('Input Data Kewangan'!B7=0,"",'Input Data Kewangan'!B7) -> PERBELANJAAN OPERASI | C16: =IF(B16="",NA(),IFERROR(INDEX('Input Data Kewangan'!$B$6:$I$30,$A16,C$6),NA())) -> 75924.86 | D16: =IF(B16="",NA(),IFERROR(INDEX('Input Data Kewangan'!$B$6:$I$30,$A16,D$6),NA())) -> 78901.27 | E16: =IF(B16="",NA(),IFERROR(INDEX('Input Data Kewangan'!$B$6:$I$30,$A16,E$6),NA())) -> 81674.37 | F16: =IF(B16="",NA(),IFERROR(INDEX('Input Data Kewangan'!$B$6:$I$30,$A16,F$6),NA())) -> 80883.33 | G16: =IF(B16="",NA(),IFERROR(INDEX('Input Data Kewangan'!$B$6:$I$30,$A16,G$6),NA())) -> 94419.45
A17: =ROWS($B$15:B17) -> 3 | B17: =IF('Input Data Kewangan'!B8=0,"",'Input Data Kewangan'!B8) -> KEUNTUNGAN OPERASI | C17: =IF(B17="",NA(),IFERROR(INDEX('Input Data Kewangan'!$B$6:$I$30,$A17,C$6),NA())) -> 68857.69 | D17: =IF(B17="",NA(),IFERROR(INDEX('Input Data Kewangan'!$B$6:$I$30,$A17,D$6),NA())) -> 75643.25 | E17: =IF(B17="",NA(),IFERROR(INDEX('Input Data Kewangan'!$B$6:$I$30,$A17,E$6),NA())) -> 76755.26 | F17: =IF(B17="",NA(),IFERROR(INDEX('Input Data Kewangan'!$B$6:$I$30,$A17,F$6),NA())) -> 77317.83 | G17: =IF(B17="",NA(),IFERROR(INDEX('Input Data Kewangan'!$B$6:$I$30,$A17,G$6),NA())) -> 73425.99
A18: =ROWS($B$15:B18) -> 4 | B18: =IF('Input Data Kewangan'!B9=0,"",'Input Data Kewangan'!B9) -> SUSUT NILAI | C18: =IF(B18="",NA(),IFERROR(INDEX('Input Data Kewangan'!$B$6:$I$30,$A18,C$6),NA())) -> 4656.92 | D18: =IF(B18="",NA(),IFERROR(INDEX('Input Data Kewangan'!$B$6:$I$30,$A18,D$6),NA())) -> 4974.21 | E18: =IF(B18="",NA(),IFERROR(INDEX('Input Data Kewangan'!$B$6:$I$30,$A18,E$6),NA())) -> 5024.11 | F18: =IF(B18="",NA(),IFERROR(INDEX('Input Data Kewangan'!$B$6:$I$30,$A18,F$6),NA())) -> 5068.42 | G18: =IF(B18="",NA(),IFERROR(INDEX('Input Data Kewangan'!$B$6:$I$30,$A18,G$6),NA())) -> 5546.88
A19: =ROWS($B$15:B19) -> 5 | B19: =IF('Input Data Kewangan'!B10=0,"",'Input Data Kewangan'!B10) -> FAEDAH | C19: =IF(B19="",NA(),IFERROR(INDEX('Input Data Kewangan'!$B$6:$I$30,$A19,C$6),NA())) -> 2893.11 | D19: =IF(B19="",NA(),IFERROR(INDEX('Input Data Kewangan'!$B$6:$I$30,$A19,D$6),NA())) -> 3136.12 | E19: =IF(B19="",NA(),IFERROR(INDEX('Input Data Kewangan'!$B$6:$I$30,$A19,E$6),NA())) -> 3148.53 | F19: =IF(B19="",NA(),IFERROR(INDEX('Input Data Kewangan'!$B$6:$I$30,$A19,F$6),NA())) -> 3338.3 | G19: =IF(B19="",NA(),IFERROR(INDEX('Input Data Kewangan'!$B$6:$I$30,$A19,G$6),NA())) -> 3789.47
A20: =ROWS($B$15:B20) -> 6 | B20: =IF('Input Data Kewangan'!B11=0,"",'Input Data Kewangan'!B11) -> UNTUNG BERSIH | C20: =IF(B20="",NA(),IFERROR(INDEX('Input Data Kewangan'!$B$6:$I$30,$A20,C$6),NA())) -> 55860.81 | D20: =IF(B20="",NA(),IFERROR(INDEX('Input Data Kewangan'!$B$6:$I$30,$A20,D$6),NA())) -> 59747.95 | E20: =IF(B20="",NA(),IFERROR(INDEX('Input Data Kewangan'!$B$6:$I$30,$A20,E$6),NA())) -> 61483.59 | F20: =IF(B20="",NA(),IFERROR(INDEX('Input Data Kewangan'!$B$6:$I$30,$A20,F$6),NA())) -> 66272.1 | G20: =IF(B20="",NA(),IFERROR(INDEX('Input Data Kewangan'!$B$6:$I$30,$A20,G$6),NA())) -> 67474.85
A21: =ROWS($B$15:B21) -> 7 | B21: =IF('Input Data Kewangan'!B12=0,"",'Input Data Kewangan'!B12) -> CUKAI | C21: =IF(B21="",NA(),IFERROR(INDEX('Input Data Kewangan'!$B$6:$I$30,$A21,C$6),NA())) -> 25576.74 | D21: =IF(B21="",NA(),IFERROR(INDEX('Input Data Kewangan'!$B$6:$I$30,$A21,D$6),NA())) -> 27498.86 | E21: =IF(B21="",NA(),IFERROR(INDEX('Input Data Kewangan'!$B$6:$I$30,$A21,E$6),NA())) -> 28335.67 | F21: =IF(B21="",NA(),IFERROR(INDEX('Input Data Kewangan'!$B$6:$I$30,$A21,F$6),NA())) -> 29424.53 | G21: =IF(B21="",NA(),IFERROR(INDEX('Input Data Kewangan'!$B$6:$I$30,$A21,G$6),NA())) -> 31408.25
A22: =ROWS($B$15:B22) -> 8 | B22: =IF('Input Data Kewangan'!B13=0,"",'Input Data Kewangan'!B13) -> KEUNTUNGAN SELEPAS CUKAI | C22: =IF(B22="",NA(),IFERROR(INDEX('Input Data Kewangan'!$B$6:$I$30,$A22,C$6),NA())) -> 38418.53 | D22: =IF(B22="",NA(),IFERROR(INDEX('Input Data Kewangan'!$B$6:$I$30,$A22,D$6),NA())) -> 39895.05 | E22: =IF(B22="",NA(),IFERROR(INDEX('Input Data Kewangan'!$B$6:$I$30,$A22,E$6),NA())) -> 40607.73 | F22: =IF(B22="",NA(),IFERROR(INDEX('Input Data Kewangan'!$B$6:$I$30,$A22,F$6),NA())) -> 42438.2 | G22: =IF(B22="",NA(),IFERROR(INDEX('Input Data Kewangan'!$B$6:$I$30,$A22,G$6),NA())) -> 50247.68
A23: =ROWS($B$15:B23) -> 9 | B23: =IF('Input Data Kewangan'!B14=0,"",'Input Data Kewangan'!B14) -> METRIK 1 | C23: =IF(B23="",NA(),IFERROR(INDEX('Input Data Kewangan'!$B$6:$I$30,$A23,C$6),NA())) -> 13.78 | D23: =IF(B23="",NA(),IFERROR(INDEX('Input Data Kewangan'!$B$6:$I$30,$A23,D$6),NA())) -> 14.29 | E23: =IF(B23="",NA(),IFERROR(INDEX('Input Data Kewangan'!$B$6:$I$30,$A23,E$6),NA())) -> 15.57 | F23: =IF(B23="",NA(),IFERROR(INDEX('Input Data Kewangan'!$B$6:$I$30,$A23,F$6),NA())) -> 16.78 | G23: =IF(B23="",NA(),IFERROR(INDEX('Input Data Kewangan'!$B$6:$I$30,$A23,G$6),NA())) -> 19.96
A24: =ROWS($B$15:B24) -> 10 | B24: =IF('Input Data Kewangan'!B15=0,"",'Input Data Kewangan'!B15) -> METRIK 2 | C24: =IF(B24="",NA(),IFERROR(INDEX('Input Data Kewangan'!$B$6:$I$30,$A24,C$6),NA())) -> 19.22 | D24: =IF(B24="",NA(),IFERROR(INDEX('Input Data Kewangan'!$B$6:$I$30,$A24,D$6),NA())) -> 20.17 | E24: =IF(B24="",NA(),IFERROR(INDEX('Input Data Kewangan'!$B$6:$I$30,$A24,E$6),NA())) -> 20.48 | F24: =IF(B24="",NA(),IFERROR(INDEX('Input Data Kewangan'!$B$6:$I$30,$A24,F$6),NA())) -> 21.84 | G24: =IF(B24="",NA(),IFERROR(INDEX('Input Data Kewangan'!$B$6:$I$30,$A24,G$6),NA())) -> 26.01
A25: =ROWS($B$15:B25) -> 11 | B25: =IF('Input Data Kewangan'!B16=0,"",'Input Data Kewangan'!B16) -> METRIK 3 | C25: =IF(B25="",NA(),IFERROR(INDEX('Input Data Kewangan'!$B$6:$I$30,$A25,C$6),NA())) -> 21.87 | D25: =IF(B25="",NA(),IFERROR(INDEX('Input Data Kewangan'!$B$6:$I$30,$A25,D$6),NA())) -> 23.19 | E25: =IF(B25="",NA(),IFERROR(INDEX('Input Data Kewangan'!$B$6:$I$30,$A25,E$6),NA())) -> 24.67 | F25: =IF(B25="",NA(),IFERROR(INDEX('Input Data Kewangan'!$B$6:$I$30,$A25,F$6),NA())) -> 26.39 | G25: =IF(B25="",NA(),IFERROR(INDEX('Input Data Kewangan'!$B$6:$I$30,$A25,G$6),NA())) -> 31.08
A26: =ROWS($B$15:B26) -> 12 | B26: =IF('Input Data Kewangan'!B17=0,"",'Input Data Kewangan'!B17) -> METRIK 4 | C26: =IF(B26="",NA(),IFERROR(INDEX('Input Data Kewangan'!$B$6:$I$30,$A26,C$6),NA())) -> 12.59 | D26: =IF(B26="",NA(),IFERROR(INDEX('Input Data Kewangan'!$B$6:$I$30,$A26,D$6),NA())) -> 13.7 | E26: =IF(B26="",NA(),IFERROR(INDEX('Input Data Kewangan'!$B$6:$I$30,$A26,E$6),NA())) -> 13.76 | F26: =IF(B26="",NA(),IFERROR(INDEX('Input Data Kewangan'!$B$6:$I$30,$A26,F$6),NA())) -> 14.59 | G26: =IF(B26="",NA(),IFERROR(INDEX('Input Data Kewangan'!$B$6:$I$30,$A26,G$6),NA())) -> 14.92
A27: =ROWS($B$15:B27) -> 13 | B27: =IF('Input Data Kewangan'!B18=0,"",'Input Data Kewangan'!B18) -> METRIK 5 | C27: =IF(B27="",NA(),IFERROR(INDEX('Input Data Kewangan'!$B$6:$I$30,$A27,C$6),NA())) -> 0.85 | D27: =IF(B27="",NA(),IFERROR(INDEX('Input Data Kewangan'!$B$6:$I$30,$A27,D$6),NA())) -> 0.89 | E27: =IF(B27="",NA(),IFERROR(INDEX('Input Data Kewangan'!$B$6:$I$30,$A27,E$6),NA())) -> 0.91 | F27: =IF(B27="",NA(),IFERROR(INDEX('Input Data Kewangan'!$B$6:$I$30,$A27,F$6),NA())) -> 1 | G27: =IF(B27="",NA(),IFERROR(INDEX('Input Data Kewangan'!$B$6:$I$30,$A27,G$6),NA())) -> 1.03
A28: =ROWS($B$15:B28) -> 14 | B28: =IF('Input Data Kewangan'!B19=0,"",'Input Data Kewangan'!B19) -> METRIK 6 | C28: =IF(B28="",NA(),IFERROR(INDEX('Input Data Kewangan'!$B$6:$I$30,$A28,C$6),NA())) -> 0.27 | D28: =IF(B28="",NA(),IFERROR(INDEX('Input Data Kewangan'!$B$6:$I$30,$A28,D$6),NA())) -> 0.28 | E28: =IF(B28="",NA(),IFERROR(INDEX('Input Data Kewangan'!$B$6:$I$30,$A28,E$6),NA())) -> 0.29 | F28: =IF(B28="",NA(),IFERROR(INDEX('Input Data Kewangan'!$B$6:$I$30,$A28,F$6),NA())) -> 0.3 | G28: =IF(B28="",NA(),IFERROR(INDEX('Input Data Kewangan'!$B$6:$I$30,$A28,G$6),NA())) -> 0.34
A29: =ROWS($B$15:B29) -> 15 | B29: =IF('Input Data Kewangan'!B20=0,"",'Input Data Kewangan'!B20) ->  | C29: =IF(B29="",NA(),IFERROR(INDEX('Input Data Kewangan'!$B$6:$I$30,$A29,C$6),NA())) ->  | D29: =IF(B29="",NA(),IFERROR(INDEX('Input Data Kewangan'!$B$6:$I$30,$A29,D$6),NA())) ->  | E29: =IF(B29="",NA(),IFERROR(INDEX('Input Data Kewangan'!$B$6:$I$30,$A29,E$6),NA())) ->  | F29: =IF(B29="",NA(),IFERROR(INDEX('Input Data Kewangan'!$B$6:$I$30,$A29,F$6),NA())) ->  | G29: =IF(B29="",NA(),IFERROR(INDEX('Input Data Kewangan'!$B$6:$I$30,$A29,G$6),NA())) -> 
A30: =ROWS($B$15:B30) -> 16 | B30: =IF('Input Data Kewangan'!B21=0,"",'Input Data Kewangan'!B21) ->  | C30: =IF(B30="",NA(),IFERROR(INDEX('Input Data Kewangan'!$B$6:$I$30,$A30,C$6),NA())) ->  | D30: =IF(B30="",NA(),IFERROR(INDEX('Input Data Kewangan'!$B$6:$I$30,$A30,D$6),NA())) ->  | E30: =IF(B30="",NA(),IFERROR(INDEX('Input Data Kewangan'!$B$6:$I$30,$A30,E$6),NA())) ->  | F30: =IF(B30="",NA(),IFERROR(INDEX('Input Data Kewangan'!$B$6:$I$30,$A30,F$6),NA())) ->  | G30: =IF(B30="",NA(),IFERROR(INDEX('Input Data Kewangan'!$B$6:$I$30,$A30,G$6),NA())) -> 
A31: =ROWS($B$15:B31) -> 17 | B31: =IF('Input Data Kewangan'!B22=0,"",'Input Data Kewangan'!B22) ->  | C31: =IF(B31="",NA(),IFERROR(INDEX('Input Data Kewangan'!$B$6:$I$30,$A31,C$6),NA())) ->  | D31: =IF(B31="",NA(),IFERROR(INDEX('Input Data Kewangan'!$B$6:$I$30,$A31,D$6),NA())) ->  | E31: =IF(B31="",NA(),IFERROR(INDEX('Input Data Kewangan'!$B$6:$I$30,$A31,E$6),NA())) ->  | F31: =IF(B31="",NA(),IFERROR(INDEX('Input Data Kewangan'!$B$6:$I$30,$A31,F$6),NA())) ->  | G31: =IF(B31="",NA(),IFERROR(INDEX('Input Data Kewangan'!$B$6:$I$30,$A31,G$6),NA())) -> 
A32: =ROWS($B$15:B32) -> 18 | B32: =IF('Input Data Kewangan'!B23=0,"",'Input Data Kewangan'!B23) ->  | C32: =IF(B32="",NA(),IFERROR(INDEX('Input Data Kewangan'!$B$6:$I$30,$A32,C$6),NA())) ->  | D32: =IF(B32="",NA(),IFERROR(INDEX('Input Data Kewangan'!$B$6:$I$30,$A32,D$6),NA())) ->  | E32: =IF(B32="",NA(),IFERROR(INDEX('Input Data Kewangan'!$B$6:$I$30,$A32,E$6),NA())) ->  | F32: =IF(B32="",NA(),IFERROR(INDEX('Input Data Kewangan'!$B$6:$I$30,$A32,F$6),NA())) ->  | G32: =IF(B32="",NA(),IFERROR(INDEX('Input Data Kewangan'!$B$6:$I$30,$A32,G$6),NA())) -> 
A33: =ROWS($B$15:B33) -> 19 | B33: =IF('Input Data Kewangan'!B24=0,"",'Input Data Kewangan'!B24) ->  | C33: =IF(B33="",NA(),IFERROR(INDEX('Input Data Kewangan'!$B$6:$I$30,$A33,C$6),NA())) ->  | D33: =IF(B33="",NA(),IFERROR(INDEX('Input Data Kewangan'!$B$6:$I$30,$A33,D$6),NA())) ->  | E33: =IF(B33="",NA(),IFERROR(INDEX('Input Data Kewangan'!$B$6:$I$30,$A33,E$6),NA())) ->  | F33: =IF(B33="",NA(),IFERROR(INDEX('Input Data Kewangan'!$B$6:$I$30,$A33,F$6),NA())) ->  | G33: =IF(B33="",NA(),IFERROR(INDEX('Input Data Kewangan'!$B$6:$I$30,$A33,G$6),NA())) -> 
A34: =ROWS($B$15:B34) -> 20 | B34: =IF('Input Data Kewangan'!B25=0,"",'Input Data Kewangan'!B25) ->  | C34: =IF(B34="",NA(),IFERROR(INDEX('Input Data Kewangan'!$B$6:$I$30,$A34,C$6),NA())) ->  | D34: =IF(B34="",NA(),IFERROR(INDEX('Input Data Kewangan'!$B$6:$I$30,$A34,D$6),NA())) ->  | E34: =IF(B34="",NA(),IFERROR(INDEX('Input Data Kewangan'!$B$6:$I$30,$A34,E$6),NA())) ->  | F34: =IF(B34="",NA(),IFERROR(INDEX('Input Data Kewangan'!$B$6:$I$30,$A34,F$6),NA())) ->  | G34: =IF(B34="",NA(),IFERROR(INDEX('Input Data Kewangan'!$B$6:$I$30,$A34,G$6),NA())) -> 
A35: =ROWS($B$15:B35) -> 21 | B35: =IF('Input Data Kewangan'!B26=0,"",'Input Data Kewangan'!B26) ->  | C35: =IF(B35="",NA(),IFERROR(INDEX('Input Data Kewangan'!$B$6:$I$30,$A35,C$6),NA())) ->  | D35: =IF(B35="",NA(),IFERROR(INDEX('Input Data Kewangan'!$B$6:$I$30,$A35,D$6),NA())) ->  | E35: =IF(B35="",NA(),IFERROR(INDEX('Input Data Kewangan'!$B$6:$I$30,$A35,E$6),NA())) ->  | F35: =IF(B35="",NA(),IFERROR(INDEX('Input Data Kewangan'!$B$6:$I$30,$A35,F$6),NA())) ->  | G35: =IF(B35="",NA(),IFERROR(INDEX('Input Data Kewangan'!$B$6:$I$30,$A35,G$6),NA())) -> 
A36: =ROWS($B$15:B36) -> 22 | B36: =IF('Input Data Kewangan'!B27=0,"",'Input Data Kewangan'!B27) ->  | C36: =IF(B36="",NA(),IFERROR(INDEX('Input Data Kewangan'!$B$6:$I$30,$A36,C$6),NA())) ->  | D36: =IF(B36="",NA(),IFERROR(INDEX('Input Data Kewangan'!$B$6:$I$30,$A36,D$6),NA())) ->  | E36: =IF(B36="",NA(),IFERROR(INDEX('Input Data Kewangan'!$B$6:$I$30,$A36,E$6),NA())) ->  | F36: =IF(B36="",NA(),IFERROR(INDEX('Input Data Kewangan'!$B$6:$I$30,$A36,F$6),NA())) ->  | G36: =IF(B36="",NA(),IFERROR(INDEX('Input Data Kewangan'!$B$6:$I$30,$A36,G$6),NA())) -> 
A37: =ROWS($B$15:B37) -> 23 | B37: =IF('Input Data Kewangan'!B28=0,"",'Input Data Kewangan'!B28) ->  | C37: =IF(B37="",NA(),IFERROR(INDEX('Input Data Kewangan'!$B$6:$I$30,$A37,C$6),NA())) ->  | D37: =IF(B37="",NA(),IFERROR(INDEX('Input Data Kewangan'!$B$6:$I$30,$A37,D$6),NA())) ->  | E37: =IF(B37="",NA(),IFERROR(INDEX('Input Data Kewangan'!$B$6:$I$30,$A37,E$6),NA())) ->  | F37: =IF(B37="",NA(),IFERROR(INDEX('Input Data Kewangan'!$B$6:$I$30,$A37,F$6),NA())) ->  | G37: =IF(B37="",NA(),IFERROR(INDEX('Input Data Kewangan'!$B$6:$I$30,$A37,G$6),NA())) -> 
A38: =ROWS($B$15:B38) -> 24 | B38: =IF('Input Data Kewangan'!B29=0,"",'Input Data Kewangan'!B29) ->  | C38: =IF(B38="",NA(),IFERROR(INDEX('Input Data Kewangan'!$B$6:$I$30,$A38,C$6),NA())) ->  | D38: =IF(B38="",NA(),IFERROR(INDEX('Input Data Kewangan'!$B$6:$I$30,$A38,D$6),NA())) ->  | E38: =IF(B38="",NA(),IFERROR(INDEX('Input Data Kewangan'!$B$6:$I$30,$A38,E$6),NA())) ->  | F38: =IF(B38="",NA(),IFERROR(INDEX('Input Data Kewangan'!$B$6:$I$30,$A38,F$6),NA())) ->  | G38: =IF(B38="",NA(),IFERROR(INDEX('Input Data Kewangan'!$B$6:$I$30,$A38,G$6),NA())) -> 
A39: =ROWS($B$15:B39) -> 25 | B39: =IF('Input Data Kewangan'!B30=0,"",'Input Data Kewangan'!B30) ->  | C39: =IF(B39="",NA(),IFERROR(INDEX('Input Data Kewangan'!$B$6:$I$30,$A39,C$6),NA())) ->  | D39: =IF(B39="",NA(),IFERROR(INDEX('Input Data Kewangan'!$B$6:$I$30,$A39,D$6),NA())) ->  | E39: =IF(B39="",NA(),IFERROR(INDEX('Input Data Kewangan'!$B$6:$I$30,$A39,E$6),NA())) ->  | F39: =IF(B39="",NA(),IFERROR(INDEX('Input Data Kewangan'!$B$6:$I$30,$A39,F$6),NA())) ->  | G39: =IF(B39="",NA(),IFERROR(INDEX('Input Data Kewangan'!$B$6:$I$30,$A39,G$6),NA())) -> 
